bitfinex/quotes_ETHUSD_20260202
["timestamp","ask_amount","ask_price","bid_price","bid_amount"]
[1770004551895,13.77011892,2242.7,2240.7,0.23705352]
[1770004552195,13.77011892,2243.7,2240.7,17.60404909]
[1770004552400,13.77011892,2243.7,2241.4,2.37053522]
[1770004553128,13.77011892,2243.7,2241.8,2.37053522]
[1770004553327,13.77011892,2243.7,2241.9,2.37053522]
[1770004553658,13.77011892,2243.7,2242.0,0.23705352]
[1770004553932,13.77011892,2243.7,2242.1,2.37053522]
[1770004554132,13.77011892,2244.6,2242.0,0.23705352]
[1770004554306,13.77011892,2244.2,2242.0,0.23705352]
[1770004554852,13.77011892,2243.8,2241.3,2.37053522]
[1770004554999,13.77011892,2243.8,2241.6,2.37053522]
[1770004555203,13.77011892,2243.8,2242.0,2.37053522]
[1770004555424,13.77011892,2244.4,2242.0,2.37053522]
[1770004555843,13.77011892,2244.4,2242.1,2.37053522]
[1770004556019,13.77011892,2244.4,2242.2,0.23705352]
[1770004556222,13.77011892,2244.2,2242.2,0.23705352]
[1770004556650,13.77011892,2244.2,2241.9,2.37053522]
[1770004556960,13.77011892,2244.2,2242.0,2.37053522]
[1770004557262,13.77011892,2244.2,2242.1,2.37053522]
[1770004557823,0.0011,2244.0,2242.5,17.36699557]
[1770004558046,0.0011,2244.0,2242.8,2.37053522]
[1770004558264,0.0011,2244.0,2242.9,2.60758874]
[1770004558792,14.12604426,2245.3,2242.9,2.60758874]
[1770004558793,0.0011,2245.1,2243.2,2.37053522]
[1770004558947,0.0011,2245.1,2243.4,1.58175818]
[1770004559140,0.0011,2245.1,2243.3,1.58175818]
[1770004559342,0.0011,2245.1,2243.4,1.97698752]
[1770004559575,0.0011,2245.1,2243.8,1.58175818]
[1770004559953,0.0011,2245.1,2244.0,1.58175818]
[1770004560273,0.0011,2245.1,2243.5,4.10238259]
[1770004560274,0.0011,2245.1,2243.5,2.51775818]
[1770004560486,0.0011,2245.1,2243.9,1.58175818]
[1770004560688,0.1226856,2246.2,2244.7,1.58175818]
[1770004560903,0.34924956,2247.3,2244.7,1.58175818]
[1770004560904,0.34924956,2247.3,2245.8,1.58175818]
[1770004561050,13.77011892,2248.8,2246.5,1.58175818]
[1770004561246,13.77011892,2248.8,2245.9,0.40546934]
[1770004561448,14.0029259,2248.8,2244.9,1.58175818]
[1770004561678,13.77011892,2248.6,2245.1,1.58175818]
[1770004561841,13.77011892,2248.6,2245.5,1.58175818]
[1770004562045,13.77011892,2248.6,2245.3,1.58175818]
[1770004562255,13.77011892,2248.6,2245.7,1.58175818]
[1770004562463,15.14713081,2248.6,2245.4,15.3711277]
[1770004562668,15.14713081,2248.6,2245.5,0.2335703]
[1770004562874,13.77011892,2248.6,2246.1,0.2335703]
[1770004563076,0.00848551,2249.0,2246.9,11.7778851]
[1770004563283,0.00848551,2249.0,2247.2,14.99646035]
[1770004563493,0.1226856,2250.6,2247.8,14.99646035]
[1770004563679,0.1226856,2250.6,2249.1,0.1024]
[1770004563879,13.77011892,2252.4,2249.1,1.50988603]
[1770004564259,4.43958198,2252.5,2248.5,14.99646035]
[1770004564260,13.77011892,2251.8,2248.5,14.99646035]
[1770004564458,13.77011892,2251.8,2248.0,0.1024]
[1770004564459,13.77011892,2251.8,2248.0,11.56499257]
[1770004564692,13.77011892,2251.8,2247.9,18.09983396]
[1770004564693,13.77011892,2251.8,2248.1,0.37466735]
[1770004564993,14.0026156,2251.8,2247.9,3.10337361]
[1770004565163,13.77011892,2251.6,2247.9,3.10337361]
[1770004565367,3.3724669,2252.5,2248.0,1.8099834]
[1770004565368,13.77011892,2251.4,2248.0,1.8099834]
[1770004565564,13.77011892,2251.4,2248.4,14.99646035]
[1770004565889,13.77011892,2252.3,2249.3,14.99646035]
[1770004566092,0.23267462,2252.8,2250.0,0.3359703]
[1770004566291,2.2961341,2254.6,2251.2,11.66739257]
[1770004566292,13.77011892,2254.6,2251.2,11.66739257]
[1770004566518,0.22961341,2254.5,2251.7,14.99646035]
[1770004566663,13.77011892,2254.6,2251.7,14.99646035]
[1770004567406,13.77011892,2254.6,2251.3,1.54505027]
[1770004567407,13.77011892,2254.6,2251.3,0.61005027]
[1770004567695,13.77011892,2254.6,2249.6,14.99646035]
[1770004567696,13.59293507,2254.5,2249.6,14.99646035]
[1770004567861,3.63720628,2254.6,2248.8,13.86023092]
[1770004567862,13.59293507,2253.3,2248.8,13.86023092]
[1770004568063,0.1024,2251.9,2249.0,27.49645292]
[1770004568284,0.1024,2251.9,2248.5,2.28878569]
[1770004568285,13.59293507,2251.0,2248.5,14.99646035]
[1770004568484,0.2335703,2251.7,2247.9,3.59632269]
[1770004568485,13.69533507,2250.9,2248.6,1.24233313]
[1770004568715,13.59293507,2250.9,2248.6,1.24233313]
[1770004568936,6.64719694,2254.8,2249.6,11.56499257]
[1770004569085,13.59293507,2253.2,2250.4,14.99646035]
[1770004569425,13.59293507,2253.2,2250.6,15.09886035]
[1770004569583,13.59293507,2253.2,2250.5,0.934]
[1770004569584,13.59293507,2253.6,2250.7,1.60328604]
[1770004569784,13.59293507,2252.8,2249.2,14.0193]
[1770004570014,0.2335703,2252.0,2248.7,11.56499257]
[1770004570220,13.59293507,2252.0,2248.7,11.56499257]
[1770004570426,13.59293507,2250.6,2247.2,26.56145292]
[1770004570587,13.92890537,2250.4,2246.4,11.56499257]
[1770004570786,13.59293507,2250.2,2245.9,14.43418707]
[1770004571014,2.06295146,2251.6,2246.7,2.42982853]
[1770004571211,15.65588653,2251.6,2248.2,11.92632993]
[1770004571511,15.65588653,2251.6,2248.1,14.99646035]
[1770004571512,13.59293507,2251.0,2248.0,0.001]
[1770004572114,0.2335703,2250.8,2248.0,0.001]
[1770004572295,13.59293507,2250.7,2248.0,0.001]
[1770004572685,13.82650537,2250.6,2248.0,0.001]
[1770004572885,13.59293507,2251.5,2248.0,0.001]
[1770004573116,2.96964801,2252.0,2248.0,11.92732993]
[1770004573117,13.59293507,2251.3,2248.0,11.92732993]
[1770004573424,13.59293507,2251.1,2248.0,0.001]
[1770004573597,13.59293507,2250.3,2248.0,0.001]
[1770004574117,13.82650537,2250.2,2248.0,0.001]
[1770004574320,13.59293507,2250.2,2248.0,0.001]
[1770004574684,13.59293507,2251.1,2248.0,0.001]
[1770004574886,13.59293507,2250.9,2248.0,0.001]
[1770004575314,13.59293507,2250.8,2248.0,0.001]
[1770004575515,1.47034609,2251.0,2248.0,0.001]
[1770004575516,13.82650537,2250.3,2248.0,0.001]
[1770004575714,13.82650537,2250.0,2248.0,0.001]
[1770004575916,13.82650537,2249.8,2248.0,0.001]
[1770004576087,0.2335703,2249.4,2246.9,0.934]
[1770004576287,13.59293507,2249.5,2246.9,0.934]
[1770004576582,13.59293507,2249.8,2246.9,0.934]
[1770004576783,3.0,2248.0,2246.9,0.934]
[1770004576991,13.59293507,2249.8,2246.9,9.86132993]
[1770004577307,13.82650537,2249.7,2247.0,0.98613299]
[1770004577509,13.59293507,2249.7,2247.0,0.98613299]
[1770004577689,14.70386074,2250.4,2247.5,14.99646035]
[1770004578217,13.59293507,2250.4,2247.2,8.92732993]
[1770004578423,13.59293507,2250.4,2247.9,14.99646035]
[1770004578586,13.59293507,2250.4,2248.0,1.49964604]
[1770004579706,13.59293507,2250.4,2247.2,37.94309028]
[1770004579888,14.70384905,2250.4,2247.2,37.94309028]
[1770004580205,13.59293507,2250.4,2247.2,23.92379028]
[1770004580810,13.59293507,2250.4,2247.9,14.99646035]
[1770004580988,13.59293507,2250.4,2247.3,8.92732993]
[1770004581194,3.08883422,2251.5,2249.7,14.99646035]
[1770004581390,13.59293507,2252.5,2249.8,0.933]
[1770004581639,14.70282696,2252.5,2249.8,0.933]
[1770004581916,14.70282696,2252.5,2249.1,14.99646035]
[1770004581917,13.59293507,2251.8,2249.1,14.99646035]
[1770004582687,4.43837984,2253.1,2249.2,0.1024]
[1770004582901,15.14640465,2253.0,2249.4,0.1024]
[1770004583101,15.14640465,2253.0,2249.2,10.43721596]
[1770004583303,0.1024,2252.2,2249.3,0.1024]
[1770004583591,13.59293507,2252.3,2249.2,10.43721596]
[1770004583792,13.59293507,2251.7,2249.2,1.50988603]
[1770004584120,13.59293507,2251.5,2249.2,1.50988603]
[1770004584538,0.0011,2251.2,2248.8,0.933]
[1770004585599,13.59403507,2251.2,2248.8,0.933]
[1770004585789,13.59293507,2250.6,2248.1,0.001]
[1770004585993,0.1024,2250.3,2248.1,0.001]
[1770004586239,4.8254,2250.3,2248.1,0.001]
[1770004586391,18.31593507,2249.7,2248.1,0.001]
[1770004586590,13.69533507,2249.4,2246.8,14.99646035]
[1770004587223,4.723,2249.3,2246.8,14.99646035]
[1770004587431,0.1024,2249.0,2246.6,0.933]
[1770004587602,13.59293507,2249.1,2246.6,0.933]
[1770004588196,4.723,2249.0,2246.6,0.933]
[1770004588411,13.59293507,2249.7,2246.7,8.92832993]
[1770004588606,13.59293507,2249.7,2247.0,1.17487363]
[1770004588910,13.59293507,2249.7,2247.1,1.17487363]
[1770004589206,4.723,2249.5,2247.1,1.17487363]
[1770004589411,13.59293507,2249.4,2247.1,1.17487363]
[1770004589614,13.59293507,2249.9,2247.3,1.17487363]
[1770004589814,13.59293507,2250.6,2247.6,0.1024]
[1770004590007,13.59293507,2250.6,2248.2,1.17487363]
[1770004590243,0.0011,2251.2,2248.9,1.17487363]
[1770004590428,0.0011,2251.2,2249.7,1.17487363]
[1770004590636,0.0011,2251.2,2249.9,1.17487363]
[1770004590940,15.19492375,2253.7,2250.7,1.17487363]
[1770004591242,15.19492375,2253.7,2250.1,3.16638259]
[1770004591243,13.59293507,2252.4,2249.7,1.17487363]
[1770004591545,13.59293507,2252.4,2249.5,1.58175818]
[1770004591546,0.1024,2250.2,2248.1,1.17487363]
[1770004591707,0.1024,2250.2,2248.0,0.00458148]
[1770004591708,0.1024,2250.0,2248.0,0.00458148]
[1770004591914,13.59293507,2250.8,2248.0,0.00458148]
[1770004592108,18.41833507,2250.7,2248.3,1.17874777]
[1770004592339,13.59293507,2250.4,2248.2,1.17874777]
[1770004592546,13.59293507,2250.4,2248.1,1.17874777]
[1770004592712,13.59293507,2250.4,2248.3,1.17874777]
[1770004592911,13.59293507,2250.4,2248.4,1.17874777]
[1770004593111,13.59293507,2250.4,2248.1,2.11174777]
[1770004593319,13.59293507,2250.4,2248.2,1.54855651]
[1770004593519,13.59293507,2250.2,2248.2,0.36980874]
[1770004593744,13.69533507,2250.1,2248.2,0.36980874]
[1770004593952,18.31593507,2249.8,2248.0,0.00458148]
[1770004594145,13.59293507,2249.8,2248.0,0.00458148]
[1770004595719,0.1024,2250.2,2248.0,0.00458148]
[1770004595926,13.59293507,2251.2,2248.2,1.17874777]
[1770004596122,14.70345399,2251.2,2248.4,1.17874777]
[1770004596323,13.69533507,2250.7,2248.4,1.17874777]
[1770004596522,13.69533507,2250.7,2248.3,1.17874777]
[1770004596753,13.69533507,2250.7,2248.2,1.17874777]
[1770004596959,13.59293507,2250.5,2248.1,1.17874777]
[1770004597143,13.59293507,2250.5,2248.0,0.00458148]
[1770004597144,13.59293507,2250.3,2248.0,1.18332925]
[1770004597458,0.1024,2250.2,2248.3,1.17874777]
[1770004598051,0.1024,2250.2,2248.4,0.27605059]
[1770004598463,14.81512795,2250.2,2248.1,1.17874777]
[1770004598639,13.83526703,2249.7,2248.1,0.001]
[1770004598845,13.83526703,2249.7,2247.6,2.35065519]
[1770004598846,13.60169673,2249.1,2247.5,1.17874777]
[1770004599049,0.2335703,2249.5,2246.9,1.17874777]
[1770004599050,13.60169673,2249.0,2246.9,1.17874777]
[1770004599261,0.1024,2248.8,2247.0,1.17874777]
[1770004599425,13.60169673,2248.5,2246.7,1.17874777]
[1770004599632,18.42709673,2247.9,2246.0,1.58175818]
[1770004599829,1.57078688,2248.9,2245.4,3.97216009]
[1770004599830,13.70409673,2247.5,2245.5,1.58175818]
[1770004600133,13.70409673,2247.5,2245.4,2.35065519]
[1770004600134,0.1024,2248.0,2247.0,0.001]
[1770004600355,0.1024,2248.1,2246.0,1.58175818]
[1770004600542,0.1024,2248.1,2245.8,2.35065519]
[1770004600543,0.1024,2248.1,2245.9,1.58175818]
[1770004600947,13.60169673,2247.6,2245.6,0.39324134]
[1770004601458,0.1024,2247.2,2244.8,2.35065519]
[1770004601648,0.1024,2247.0,2244.6,2.35065519]
[1770004601825,0.1024,2247.0,2244.5,2.35065519]
[1770004602257,13.70409673,2246.8,2244.1,2.35065519]
[1770004602460,13.60169673,2246.8,2244.1,2.35065519]
[1770004602766,13.60169673,2246.8,2244.0,0.933]
[1770004602767,13.70409673,2248.0,2245.4,2.35065519]
[1770004603374,13.70409673,2248.0,2245.2,2.35065519]
[1770004603582,13.70409673,2248.0,2245.5,2.35065519]
[1770004604070,13.70409673,2248.0,2245.2,3.16638259]
[1770004604071,0.1024,2247.8,2245.3,2.35065519]
[1770004604239,13.70409673,2247.6,2245.0,2.35065519]
[1770004604446,0.1024,2247.5,2245.1,2.58572071]
[1770004604762,0.1024,2247.5,2245.1,0.23506552]
[1770004604950,13.60169673,2247.6,2245.1,0.23506552]
[1770004605155,13.60169673,2247.9,2245.1,2.58572071]
[1770004605482,13.60169673,2247.9,2245.2,2.35065519]
[1770004605702,13.60169673,2247.5,2245.1,0.23506552]
[1770004606055,0.1024,2247.4,2244.3,15.82985814]
[1770004606256,0.1024,2247.2,2244.3,12.66347555]
[1770004606447,0.1024,2247.3,2244.3,12.66347555]
[1770004606650,13.60169673,2247.4,2244.4,0.1024]
[1770004606881,12.900003,2247.8,2244.7,13.85264771]
[1770004607179,12.900003,2247.8,2244.8,18.73117333]
[1770004607482,12.900003,2247.8,2244.9,13.85264771]
[1770004607888,0.1024,2247.7,2244.9,13.85264771]
[1770004608056,12.900003,2247.8,2244.9,13.85264771]
[1770004608900,12.900003,2247.7,2244.9,13.85264771]
[1770004609197,0.1024,2247.4,2245.0,0.6469042]
[1770004609382,13.002403,2247.4,2244.6,0.934]
[1770004609583,12.900003,2247.4,2244.6,29.66577661]
[1770004609786,12.900003,2247.4,2244.7,13.85264771]
[1770004610092,12.900003,2247.4,2244.7,14.78664771]
[1770004610595,4.723,2247.3,2244.7,29.66577661]
[1770004610762,4.723,2247.3,2244.8,13.85264771]
[1770004611484,13.002403,2247.8,2244.8,13.85264771]
[1770004611797,4.723,2247.5,2244.8,13.85264771]
[1770004612169,0.1024,2247.4,2244.8,13.85264771]
[1770004612388,4.723,2247.5,2245.0,0.001]
[1770004613104,4.723,2247.5,2245.0,13.85364771]
[1770004614305,4.723,2247.4,2245.3,14.8791289]
[1770004614505,12.900003,2248.2,2245.1,13.85264771]
[1770004614668,12.900003,2248.0,2245.1,13.85264771]
[1770004615397,4.723,2247.9,2245.1,13.85264771]
[1770004615573,4.723,2247.8,2245.2,1.38536477]
[1770004615774,4.723,2247.4,2245.2,1.38536477]
[1770004617403,12.900003,2248.3,2245.8,13.85264771]
[1770004617603,12.900003,2248.3,2245.9,0.934]
[1770004617780,12.900003,2248.9,2245.9,14.78664771]
[1770004618176,12.900003,2248.9,2246.3,28.73177661]
[1770004618394,12.900003,2248.9,2246.3,13.85264771]
[1770004618395,4.723,2248.8,2246.3,13.85264771]
[1770004619443,4.723,2248.4,2245.9,0.934]
[1770004620103,17.623003,2248.4,2245.9,0.934]
[1770004620299,4.723,2248.0,2245.9,0.934]
[1770004620707,4.723,2248.6,2246.5,13.85264771]
[1770004620908,14.81455593,2251.1,2247.9,13.85264771]
[1770004621206,12.900003,2251.9,2248.9,0.2335703]
[1770004621421,12.900003,2251.9,2248.4,3.16638259]
[1770004621422,12.901103,2251.0,2248.4,3.16638259]
[1770004621637,12.901103,2251.0,2248.4,13.03382918]
[1770004621938,0.0011,2251.0,2248.5,32.53458826]
[1770004622105,12.900003,2250.9,2248.5,1.93677649]
[1770004622308,17.623003,2250.2,2248.3,0.934]
[1770004622613,17.623003,2250.2,2247.6,14.8791289]
[1770004622614,4.723,2250.0,2247.5,0.934]
[1770004622824,0.0011,2251.0,2247.5,13.86542918]
[1770004622825,12.900003,2250.6,2247.5,13.86542918]
[1770004623155,0.0011,2251.0,2248.3,12.93142918]
[1770004623436,0.0011,2251.0,2248.9,12.88688918]
[1770004623940,0.0011,2251.0,2248.8,14.8791289]
[1770004624151,12.901103,2251.0,2248.8,14.8791289]
[1770004624440,12.900003,2250.8,2248.4,0.934]
[1770004624749,12.900003,2250.0,2247.5,6.92824869]
[1770004624903,12.900003,2249.4,2247.6,0.69282487]
[1770004625110,12.900003,2249.3,2247.6,0.69282487]
[1770004625301,12.900003,2250.0,2247.6,15.57195377]
[1770004625503,12.900003,2250.7,2247.8,0.2335703]
[1770004625712,12.900003,2250.7,2248.2,17.23294328]
[1770004625915,12.900003,2250.7,2248.3,1.72329433]
[1770004626315,13.1335733,2250.3,2247.5,6.92824869]
[1770004626523,12.900003,2249.5,2247.5,5.99424869]
[1770004627103,12.900003,2248.8,2247.5,5.99424869]
[1770004627305,12.900003,2248.4,2245.8,2.35381438]
[1770004627607,12.900003,2248.0,2245.3,17.23294328]
[1770004627907,12.900003,2248.0,2245.4,1.81669433]
[1770004628112,12.900003,2248.0,2245.4,4.17050871]
[1770004628307,12.900003,2248.0,2245.4,1.81669433]
[1770004628537,13.41916053,2247.9,2245.4,1.81669433]
[1770004628712,1.21433274,2248.4,2245.5,0.41705087]
[1770004628713,13.41916053,2247.7,2245.5,0.41705087]
[1770004629109,13.41916053,2247.5,2245.5,0.41705087]
[1770004629440,13.41916053,2247.5,2245.0,0.001]
[1770004630032,0.1024,2247.4,2245.0,0.001]
[1770004630337,13.41916053,2247.1,2245.0,0.001]
[1770004631353,0.1024,2246.6,2245.0,0.001]
[1770004631527,13.41916053,2247.8,2245.0,0.001]
[1770004631715,1.18003146,2248.3,2245.0,0.001]
[1770004631716,13.41916053,2247.2,2245.0,0.001]
[1770004631920,13.41916053,2246.8,2245.0,0.001]
[1770004632455,0.2335703,2245.7,2243.9,0.001]
[1770004632633,13.41916053,2245.2,2242.7,1.57402575]
[1770004632835,13.41916053,2245.2,2243.1,1.57402575]
[1770004633136,0.1024,2246.2,2243.5,1.57402575]
[1770004633351,13.41916053,2246.1,2243.6,1.57402575]
[1770004633560,13.41916053,2245.5,2243.2,0.39278401]
[1770004633759,13.41916053,2245.3,2243.2,0.39278401]
[1770004634077,13.41916053,2245.3,2243.0,1.57402575]
[1770004634274,13.41916053,2245.3,2242.9,1.57402575]
[1770004634475,13.41916053,2245.3,2242.8,1.57402575]
[1770004634774,13.41916053,2245.3,2242.6,1.57402575]
[1770004634970,13.41916053,2245.3,2242.7,1.57402575]
[1770004635177,13.41916053,2245.1,2242.6,1.57402575]
[1770004635486,13.41916053,2245.1,2242.5,2.50802575]
[1770004635641,13.41916053,2245.1,2242.1,3.24716448]
[1770004635642,13.41916053,2244.5,2242.1,1.57402575]
[1770004635841,13.41916053,2245.5,2242.1,14.8791289]
[1770004636040,13.41916053,2245.3,2242.5,1.57402575]
[1770004636343,13.41916053,2246.1,2243.0,16.45315465]
[1770004636585,13.41916053,2246.1,2243.1,1.57402575]
[1770004636744,13.41916053,2245.5,2242.7,1.57402575]
[1770004636945,13.41916053,2245.3,2243.0,16.45315465]
[1770004637150,13.41916053,2246.0,2243.1,1.57402575]
[1770004637451,1.11283672,2246.6,2243.1,1.57402575]
[1770004637452,14.53145809,2247.6,2243.5,16.45315465]
[1770004637668,4.723,2247.5,2243.6,0.934]
[1770004637969,13.52156053,2246.0,2243.6,0.934]
[1770004638170,14.77131658,2245.9,2243.6,0.934]
[1770004638679,13.41916053,2245.8,2243.6,0.934]
[1770004638889,13.41916053,2245.4,2242.6,1.57402575]
[1770004639182,13.41916053,2245.4,2242.5,0.934]
[1770004639183,13.41916053,2245.4,2242.8,2.37496154]
[1770004639386,13.41916053,2246.0,2242.9,1.57402575]
[1770004639847,0.1024,2246.2,2242.8,1.57402575]
[1770004639848,13.41916053,2245.6,2242.8,1.57402575]
[1770004640054,14.77131658,2245.5,2242.6,1.57402575]
[1770004640344,14.77131658,2245.5,2242.6,0.1024]
[1770004640571,13.41916053,2245.5,2242.7,14.8791289]
[1770004640776,13.41916053,2245.3,2242.5,0.934]
[1770004640997,13.41916053,2245.3,2243.3,0.001]
[1770004641273,1.34191605,2245.2,2243.3,0.001]
[1770004641649,13.41916053,2245.3,2243.3,0.001]
[1770004642272,13.41916053,2245.1,2243.3,0.001]
[1770004642467,13.41916053,2244.9,2243.3,0.001]
[1770004643574,13.41916053,2244.7,2243.3,0.001]
[1770004643959,13.41916053,2244.3,2243.0,0.001]
[1770004644170,13.41916053,2244.1,2242.2,0.001]
[1770004644346,13.65273083,2243.6,2242.2,0.001]
[1770004644546,13.41916053,2243.6,2242.2,0.001]
[1770004644760,13.41916053,2244.5,2242.2,0.001]
[1770004645082,13.41916053,2244.1,2242.2,0.001]
[1770004645293,1.47610766,2244.4,2240.4,1.57402575]
[1770004645294,13.41916053,2243.7,2240.4,1.57402575]
[1770004645493,1.47610766,2244.4,2240.9,12.89288918]
[1770004645703,13.41916053,2244.5,2241.5,12.89288918]
[1770004645865,13.41916053,2245.2,2241.9,13.12645948]
[1770004646190,13.41916053,2245.2,2242.3,0.1024]
[1770004646191,2.38368096,2245.1,2242.3,0.1024]
[1770004646374,2.38368096,2245.1,2242.3,12.99528918]
[1770004646693,15.80284149,2245.1,2241.9,0.1024]
[1770004646888,2.38368096,2245.0,2242.2,14.8791289]
[1770004647196,2.38368096,2245.0,2242.3,27.49528918]
[1770004647490,2.38368096,2245.0,2242.4,13.12645948]
[1770004647690,2.38368096,2245.0,2242.7,0.1024]
[1770004648052,2.38368096,2245.0,2242.7,0.83192266]
[1770004648261,2.38368096,2245.0,2242.8,0.72952266]
[1770004648262,15.80284149,2245.0,2242.8,0.72952266]
[1770004648518,13.41916053,2244.8,2242.0,27.77201808]
[1770004648801,13.41916053,2244.8,2242.1,15.23123633]
[1770004648982,2.38368096,2245.0,2242.2,1.52312363]
[1770004649188,7.10668096,2245.0,2242.2,1.52312363]
[1770004649387,18.14216053,2244.9,2242.2,1.52312363]
[1770004649699,13.41916053,2244.9,2242.2,1.52312363]
[1770004650063,2.38368096,2245.0,2242.5,12.99528918]
[1770004650271,2.38368096,2245.0,2242.7,12.99528918]
[1770004650571,2.38368096,2245.0,2242.7,12.89288918]
[1770004650877,13.41916053,2244.7,2242.6,1.16428912]
[1770004651201,2.38368096,2245.0,2242.0,14.46691493]
[1770004651362,15.80284149,2245.0,2242.1,0.1024]
[1770004652287,15.80284149,2245.0,2241.9,2.50902575]
[1770004652288,13.41916053,2244.9,2241.9,0.935]
[1770004652494,15.1798242,2244.9,2241.9,0.935]
[1770004652790,15.1798242,2244.9,2241.2,14.0193]
[1770004652791,13.41916053,2244.5,2241.2,14.0193]
[1770004652991,13.41916053,2244.1,2241.3,1.55933258]
[1770004653465,13.41916053,2244.0,2241.3,1.55933258]
[1770004654284,13.41916053,2244.0,2241.4,1.57402575]
[1770004654483,13.41916053,2244.0,2241.5,1.57402575]
[1770004654885,13.41916053,2244.0,2241.6,1.57402575]
[1770004655086,13.41916053,2244.0,2241.7,0.39278401]
[1770004655563,13.41916053,2244.0,2242.1,0.001]
[1770004657899,12.61428779,2243.8,2242.1,0.001]
[1770004658209,13.72859572,2243.6,2241.6,1.57660461]
[1770004658379,12.61428779,2243.2,2240.9,2.35381438]
[1770004658581,0.1024,2243.3,2241.0,0.23538144]
[1770004658582,12.61428779,2242.9,2241.0,0.23538144]
[1770004658900,12.61428779,2241.9,2239.9,0.001]
[1770004659201,12.61428779,2241.9,2239.9,2.35481438]
[1770004659375,12.61428779,2242.8,2240.0,2.35381438]
[1770004659577,1.27166878,2243.1,2239.9,2.35481438]
[1770004659578,12.61428779,2242.4,2239.9,2.35481438]
[1770004659896,13.87571657,2242.4,2240.4,1.19121191]
[1770004660068,0.1024,2242.7,2240.6,1.19121191]
[1770004660270,12.61428779,2243.0,2240.6,1.19121191]
[1770004660464,0.1024,2242.9,2240.7,1.19121191]
[1770004660704,12.61428779,2242.9,2240.8,1.19121191]
[1770004660908,2.62209245,2242.8,2240.8,1.19121191]
[1770004661393,15.23638024,2242.8,2240.8,1.19121191]
[1770004661575,15.23638024,2242.8,2240.9,1.19121191]
[1770004662098,15.23638024,2242.8,2240.8,1.19121191]
[1770004662394,15.23638024,2242.8,2240.9,1.19121191]
[1770004662696,1.52363802,2242.7,2240.9,1.19121191]
[1770004663102,1.36066367,2242.8,2241.0,1.19121191]
[1770004663268,1.36066367,2242.8,2241.2,1.19121191]
[1770004663475,1.36066367,2242.8,2241.6,1.19121191]
[1770004664072,1.36066367,2242.8,2241.4,1.19121191]
[1770004664276,1.36066367,2242.8,2241.3,1.19121191]
[1770004664887,1.36066367,2242.8,2241.4,1.19121191]
[1770004665400,1.36066367,2242.8,2241.3,1.19121191]
[1770004665599,12.61428779,2242.7,2240.9,1.19121191]
[1770004665802,1.36066367,2242.8,2241.2,1.19121191]
[1770004666001,1.36066367,2242.8,2241.5,1.19121191]
[1770004666601,1.36066367,2242.8,2240.8,3.14476448]
[1770004666602,1.36066367,2242.8,2241.3,1.19121191]
[1770004667100,1.36066367,2242.8,2241.6,1.19121191]
[1770004667269,1.36066367,2242.8,2241.5,1.19121191]
[1770004667472,1.36066367,2242.8,2241.6,1.19121191]
[1770004667679,1.36066367,2242.8,2241.8,1.19121191]
[1770004667881,1.36066367,2242.8,2241.0,13.45644543]
[1770004667882,1.36066367,2242.8,2241.9,1.19121191]
[1770004668108,13.57491651,2243.9,2242.0,1.19121191]
[1770004668278,14.93240816,2243.9,2242.1,1.19121191]
[1770004668478,13.57491651,2243.9,2242.1,1.19121191]
[1770004668707,0.52250939,2244.3,2242.6,1.19121191]
[1770004668879,0.52250939,2244.3,2242.9,1.19121191]
[1770004669078,0.52250939,2244.3,2243.3,1.19121191]
[1770004669276,0.52250939,2244.3,2243.5,1.19121191]
[1770004669492,13.57601651,2245.1,2243.5,1.19121191]
[1770004669815,13.57491651,2244.9,2243.0,1.19121191]
[1770004670013,0.0011,2244.0,2243.0,1.19121191]
[1770004670315,13.57491651,2244.9,2243.5,1.19121191]
[1770004670482,4.723,2244.8,2243.5,1.19121191]
[1770004670675,0.0011,2244.9,2244.0,1.19121191]
[1770004670877,0.0011,2244.9,2243.7,2.35381438]
[1770004670878,0.0011,2244.9,2244.2,1.19121191]
[1770004671078,0.0011,2244.9,2243.7,0.936]
[1770004671079,0.0011,2244.9,2244.0,1.19121191]
[1770004671276,0.0011,2244.9,2244.2,1.1896471]
[1770004671523,0.0011,2245.3,2244.5,1.1896471]
[1770004671805,0.0011,2245.3,2244.0,1.1896471]
[1770004672184,0.0011,2245.3,2243.8,1.1896471]
[1770004672387,0.0011,2245.3,2243.2,3.14476448]
[1770004672388,13.57491651,2245.2,2243.2,1.1896471]
[1770004672598,13.57491651,2245.2,2242.9,3.28981438]
[1770004672599,13.57491651,2245.0,2243.1,1.1896471]
[1770004672796,13.57491651,2245.0,2243.0,1.1896471]
[1770004673001,13.57491651,2245.0,2242.9,0.936]
[1770004673002,13.57491651,2245.0,2243.2,1.1896471]
[1770004673174,13.57491651,2245.0,2243.4,1.1896471]
[1770004673381,0.0011,2245.3,2243.5,1.1896471]
[1770004673610,0.0011,2245.3,2242.9,4.08076448]
[1770004673611,0.0011,2245.3,2243.6,1.1896471]
[1770004673908,0.0011,2245.3,2243.3,1.1896471]
[1770004674107,0.35993581,2246.3,2245.0,1.1896471]
[1770004674307,0.35993581,2246.3,2244.8,2.35381438]
[1770004674518,0.35993581,2246.3,2244.9,0.23538144]
[1770004674727,0.35993581,2246.3,2244.5,2.35381438]
[1770004674943,0.35993581,2246.3,2244.4,0.936]
[1770004675443,0.35993581,2246.3,2244.4,3.28981438]
[1770004675737,0.35993581,2246.3,2244.5,2.35381438]
[1770004676102,13.57491651,2246.7,2244.5,2.35381438]
[1770004676301,1.35749165,2246.6,2244.6,0.32898144]
[1770004676633,13.57491651,2246.7,2244.6,0.32898144]
[1770004676806,13.57491651,2246.7,2244.6,2.68279582]
[1770004677197,13.57491651,2246.7,2244.6,0.32898144]
[1770004677902,13.57491651,2246.7,2244.4,0.936]
[1770004679615,13.57491651,2246.7,2244.0,2.35381438]
[1770004680502,0.2335703,2246.4,2243.9,2.35381438]
[1770004680730,0.2335703,2246.4,2243.2,2.35381438]
[1770004680731,13.57491651,2245.9,2243.2,2.35381438]
[1770004681405,13.57491651,2245.9,2243.4,15.4613445]
[1770004681728,13.57491651,2247.5,2243.7,0.1024]
[1770004681927,13.67731651,2246.9,2243.8,2.35381438]
[1770004682132,13.57491651,2246.9,2244.2,2.35381438]
[1770004682345,13.57491651,2246.3,2243.9,2.35381438]
[1770004682544,13.57491651,2245.9,2243.1,2.35381438]
[1770004682844,13.57491651,2246.4,2243.5,28.0275348]
[1770004683047,13.57491651,2246.4,2244.0,2.35381438]
[1770004683343,13.57491651,2246.4,2243.8,2.35381438]
[1770004683561,13.57491651,2246.2,2244.1,0.001]
[1770004683732,13.57491651,2246.0,2244.1,0.001]
[1770004684041,13.57491651,2245.8,2244.1,0.001]